bitfinex/quotes_BTCUSD_20251221
["timestamp","ask_amount","ask_price","bid_price","bid_amount"]
[1766276392374,0.01698313,88471.0,88461.0,0.16564753]
[1766276392571,0.00568,88471.0,88461.0,0.16564753]
[1766276392775,0.01698313,88471.0,88461.0,0.16564753]
[1766276393092,0.01130326,88470.0,88461.0,0.16564753]
[1766276393504,0.00568,88471.0,88461.0,0.16564753]
[1766276394516,0.01698313,88471.0,88461.0,0.16564753]
[1766276394872,0.01130326,88470.0,88461.0,0.16564753]
[1766276395928,0.01130339,88469.0,88461.0,0.16564753]
[1766276396139,0.01130364,88467.0,88461.0,0.16564753]
[1766276396314,0.01130364,88467.0,88457.0,0.01130301]
[1766276396315,0.01185341,88461.0,88457.0,3.01e-06]
[1766276396521,0.000549,88461.0,88454.0,0.00568]
[1766276396722,0.01130428,88462.0,88454.0,0.00568]
[1766276397306,0.01130428,88462.0,88452.0,0.03396487]
[1766276397307,0.1128,88459.0,88452.0,0.03396487]
[1766276397587,0.000549,88454.0,88451.0,0.00568]
[1766276397793,0.12410467,88459.0,88451.0,0.00568]
[1766276397794,0.1128,88459.0,88451.0,0.00568]
[1766276398165,0.10951,88459.0,88451.0,0.00568]
[1766276401701,0.00568,88465.0,88459.0,0.00055]
[1766276402075,0.00568,88465.0,88454.0,0.29698]
[1766276402649,0.01130403,88464.0,88454.0,0.29698]
[1766276402858,0.01130416,88463.0,88451.0,0.00568]
[1766276403263,0.01130428,88462.0,88451.0,0.00568]
[1766276403529,0.01130262,88475.0,88462.0,0.00055]
[1766276403724,0.01130339,88469.0,88462.0,0.00055]
[1766276403950,0.12101326,88470.0,88462.0,0.00055]
[1766276404097,0.12101326,88470.0,88458.0,0.0633033]
[1766276404506,0.01130339,88469.0,88458.0,0.0633033]
[1766276404780,0.01130352,88468.0,88458.0,0.0633033]
[1766276404971,0.01130339,88469.0,88458.0,0.0633033]
[1766276405516,0.12101326,88470.0,88458.0,0.0633033]
[1766276405970,0.22976495,88469.0,88458.0,0.0633033]
[1766276406199,0.0113039,88465.0,88458.0,0.0633033]
[1766276407037,0.000549,88458.0,88455.0,0.00568]
[1766276407258,0.10971,88460.0,88455.0,0.00568]
[1766276407475,0.10971,88460.0,88453.0,0.00568]
[1766276410982,0.12101454,88460.0,88453.0,0.00568]
[1766276411407,0.10971,88460.0,88453.0,0.00568]
[1766276412804,0.01130467,88459.0,88452.0,0.0339641]
[1766276413011,0.000549,88452.0,88444.0,0.29826]
[1766276413210,0.11533467,88459.0,88445.0,0.00568]
[1766276413414,0.11533467,88459.0,88445.0,0.30394]
[1766276413846,0.01130531,88454.0,88445.0,0.17654]
[1766276414127,0.01130531,88454.0,88446.0,0.00568]
[1766276414128,0.01130556,88452.0,88446.0,0.00568]
[1766276414464,0.17186051,88456.0,88446.0,0.00568]
[1766276415352,0.01130518,88455.0,88446.0,0.00568]
[1766276415739,0.11533505,88456.0,88446.0,0.00568]
[1766276415941,0.01130531,88454.0,88446.0,0.00568]
[1766276416261,0.10403,88453.0,88446.0,0.00568]
[1766276416484,0.11533543,88453.0,88446.0,0.00578741]
[1766276416615,0.10403,88453.0,88446.0,0.00578741]
[1766276417018,0.11533543,88453.0,88446.0,0.00578741]
[1766276417227,0.09835,88449.0,88445.0,0.00568]
[1766276417845,0.01130556,88452.0,88445.0,0.00568]
[1766276418556,0.01130543,88453.0,88445.0,0.00568]
[1766276419442,0.10965531,88454.0,88445.0,0.00568]
[1766276419557,0.01130543,88453.0,88445.0,0.00568]
[1766276419999,0.10965531,88454.0,88445.0,0.00568]
[1766276420768,0.01130543,88453.0,88445.0,0.00568]
[1766276420974,0.10965531,88454.0,88445.0,0.00568]
[1766276421398,0.01130543,88453.0,88445.0,0.00568]
[1766276422265,0.09835,88454.0,88445.0,0.00568]
[1766276422901,0.10965531,88454.0,88445.0,0.00568]
[1766276423202,0.01130543,88453.0,88445.0,0.00568]
[1766276423376,0.10965531,88454.0,88445.0,0.00568]
[1766276423581,0.09835,88454.0,88445.0,0.00568]
[1766276424794,0.10965531,88454.0,88445.0,0.00568]
[1766276425023,0.09835,88454.0,88445.0,0.00568]
[1766276425814,0.10965531,88454.0,88445.0,0.00568]
[1766276426984,0.09835,88454.0,88445.0,0.00568]
[1766276427194,0.01130543,88453.0,88445.0,0.00568]
[1766276427913,0.01130556,88452.0,88445.0,0.00568]
[1766276428101,0.01130543,88453.0,88445.0,0.00568]
[1766276428102,0.10965531,88454.0,88445.0,0.00568]
[1766276429319,0.09835,88454.0,88445.0,0.00568]
[1766276429522,0.01698505,88456.0,88445.0,0.00568]
[1766276429924,0.00568,88456.0,88445.0,0.00568]
[1766276430127,0.00568,88456.0,88445.0,0.29626]
[1766276430486,0.00568,88456.0,88445.0,0.01698646]
[1766276430685,0.00513,88456.0,88446.0,0.29058]
[1766276430893,0.00513,88456.0,88447.0,0.16622]
[1766276431091,0.00513,88456.0,88446.0,0.12436]
[1766276431092,0.00513,88456.0,88448.0,0.29058]
[1766276434787,0.00568,88459.0,88445.0,0.00568]
[1766276434962,0.00568,88459.0,88447.0,0.0113062]
[1766276435540,0.00568,88459.0,88450.0,0.17801]
[1766276435829,0.00568,88459.0,88451.0,0.29323]
[1766276436180,0.00568,88459.0,88447.0,0.0113062]
[1766276436573,0.00568,88459.0,88448.0,0.01130607]
[1766276436777,0.00568,88459.0,88449.0,0.17801]
[1766276437008,0.00568,88459.0,88451.0,0.29323]
[1766276437547,0.01698467,88459.0,88451.0,0.29333752]
[1766276438299,0.0113048,88458.0,88451.0,0.29333752]
[1766276438917,0.01698467,88459.0,88451.0,0.29333752]
[1766276439326,0.0113048,88458.0,88451.0,0.29333752]
[1766276439875,0.01698467,88459.0,88451.0,0.29333752]
[1766276440952,0.00568,88459.0,88451.0,0.29333752]
[1766276443137,0.00568,88459.0,88452.0,0.29323]
[1766276443763,0.00568,88459.0,88453.0,0.29323]
[1766276452333,0.01698467,88459.0,88451.0,0.00010752]
[1766276452718,0.00568,88459.0,88451.0,0.00010752]
[1766276454134,0.01698467,88459.0,88451.0,0.00010752]
[1766276454670,0.0113048,88458.0,88451.0,0.00010752]
[1766276455292,0.01130492,88457.0,88451.0,0.00010752]
[1766276455644,0.0113048,88458.0,88451.0,0.00010752]
[1766276456249,0.01130492,88457.0,88451.0,0.00010752]
[1766276456496,0.0113048,88458.0,88451.0,0.00010752]
[1766276456688,0.01130505,88456.0,88451.0,5.2e-07]
[1766276456901,0.01130492,88457.0,88451.0,5.2e-07]
[1766276458082,0.0113048,88458.0,88451.0,5.2e-07]
[1766276458624,0.01698467,88459.0,88451.0,5.2e-07]
[1766276459679,0.00568,88459.0,88451.0,5.2e-07]
[1766276459850,0.0113048,88458.0,88451.0,5.2e-07]
[1766276460057,0.00568,88459.0,88451.0,5.2e-07]
[1766276462600,0.03054025,88476.0,88459.0,0.05662897]
[1766276462818,0.01130441,88475.0,88464.0,0.17801]
[1766276463023,0.02260703,88475.0,88468.0,0.17801]
[1766276463381,0.01130275,88474.0,88468.0,0.17801]
[1766276463617,0.01130275,88474.0,88468.0,0.177567]
[1766276464139,0.02260703,88475.0,88468.0,0.177567]
[1766276464491,0.01130275,88474.0,88468.0,0.177567]
[1766276464878,0.01130288,88473.0,88468.0,0.177567]
[1766276465254,0.01130275,88474.0,88468.0,0.177567]
[1766276467775,0.01130288,88473.0,88468.0,0.177567]
[1766276468551,0.00024619,88473.0,88468.0,0.177567]
[1766276476154,0.02285322,88473.0,88468.0,0.177567]
[1766276477965,0.0341561,88473.0,88468.0,0.177567]
[1766276478206,0.02285322,88473.0,88464.0,0.11522]
[1766276479588,0.02285322,88473.0,88462.0,0.16838]
[1766276480663,0.02285322,88473.0,88462.0,0.28588]
[1766276480883,0.22611687,88489.0,88460.0,0.01698454]
[1766276480884,0.121,88489.0,88473.0,0.000549]
[1766276481086,0.1209,88478.0,88466.0,0.00568]
[1766276481290,0.11447162,88478.0,88466.0,0.00568]
[1766276481501,0.1067365,88478.0,88466.0,0.00568]
[1766276481713,0.1067365,88478.0,88467.0,0.03395818]
[1766276483145,0.11803874,88478.0,88467.0,0.20233818]
[1766276483488,0.1067365,88478.0,88467.0,0.20233818]
[1766276483656,0.1067365,88478.0,88467.0,0.16838]
[1766276483894,0.11803874,88478.0,88468.0,0.03395818]
[1766276484114,0.1067365,88478.0,88468.0,0.03395818]
[1766276484520,0.11803874,88478.0,88468.0,0.03395818]
[1766276484707,0.01130288,88473.0,88468.0,0.03395818]
[1766276485102,0.01130301,88472.0,88468.0,0.03395818]
[1766276485751,0.01130288,88473.0,88468.0,0.03395818]
[1766276485752,0.01130313,88471.0,88468.0,0.03395818]
[1766276485889,0.06781759,88473.0,88468.0,0.03395818]
[1766276486312,0.05651563,88472.0,88468.0,0.03395818]
[1766276486472,0.01130313,88471.0,88468.0,0.03395818]
[1766276487135,0.05651824,88467.0,88466.0,0.00568]
[1766276487466,0.01130441,88461.0,88458.0,0.11551]
[1766276487699,0.01130441,88461.0,88451.0,5.2e-07]
[1766276487700,0.06782726,88460.0,88457.0,0.00568]
[1766276487925,0.01130428,88462.0,88457.0,0.00568]
[1766276488371,0.01130416,88463.0,88457.0,0.00568]
[1766276488597,0.22605097,88476.0,88457.0,0.00568]
[1766276488598,0.03054025,88499.0,88469.0,0.11551]
[1766276488810,0.0002,88501.0,88487.0,0.11551]
[1766276489027,0.0002,88505.0,88491.0,0.11551]
[1766276489241,0.0002,88505.0,88493.0,0.11551]
[1766276489473,0.0002,88505.0,88492.0,0.09193823]
[1766276489474,0.18240764,88514.0,88497.0,0.18517981]
[1766276489680,0.18240764,88514.0,88496.0,0.01129994]
[1766276489681,0.18240764,88514.0,88500.0,0.3526933]
[1766276489885,0.18240764,88514.0,88501.0,0.02981446]
[1766276490095,0.0112979,88512.0,88502.0,0.0105753]
[1766276490303,0.01129777,88513.0,88503.0,0.0105753]
[1766276490508,0.01129777,88513.0,88504.0,0.0105753]
[1766276490509,0.0112979,88512.0,88504.0,0.0105753]
[1766276490722,0.0112979,88512.0,88501.0,0.00568]
[1766276490723,0.17146968,88514.0,88505.0,0.0105753]
[1766276490894,0.18276732,88514.0,88506.0,0.0105753]
[1766276491033,0.01129777,88513.0,88507.0,0.0105753]
[1766276491242,0.01129777,88513.0,88508.0,0.00568]
[1766276491439,0.29793732,88514.0,88508.0,0.00568]
[1766276491775,0.28663968,88514.0,88509.0,0.01054626]
[1766276491978,0.28663968,88514.0,88510.0,0.01054626]
[1766276492186,0.28340519,88514.0,88511.0,0.01054626]
[1766276492399,0.28340519,88514.0,88512.0,0.01054626]
[1766276492606,0.28340519,88514.0,88508.0,0.00568]
[1766276492807,0.000549,88512.0,88508.0,0.00568]
[1766276493202,0.00035968,88514.0,88508.0,0.00568]
[1766276497896,0.01165732,88514.0,88508.0,0.00568]
[1766276498286,0.00086132,88509.0,88508.0,0.00568]
[1766276501861,0.00086132,88509.0,88508.0,0.005131]
[1766276502501,0.00031232,88509.0,88508.0,0.005131]
[1766276511250,0.00031232,88509.0,88508.0,0.01565065]
[1766276514625,0.00031232,88509.0,88504.0,0.00452603]
[1766276514817,0.14094,88511.0,88505.0,0.00568]
[1766276514974,0.12218,88510.0,88505.0,0.00568]
[1766276515799,0.14094,88511.0,88505.0,0.00568]
[1766276517217,0.13358534,88511.0,88505.0,0.00568]
[1766276518220,0.1225533,88511.0,88505.0,0.00568]
[1766276520154,0.00025075,88507.0,88505.0,0.00568]
[1766276520355,7.5e-07,88507.0,88505.0,0.00568]
[1766276521914,7.5e-07,88507.0,88506.0,0.00568]
[1766276524770,7.5e-07,88507.0,88506.0,0.005431]
[1766276525338,7.5e-07,88507.0,88506.0,0.00568]
[1766276526782,7.5e-07,88507.0,88506.0,0.01625906]
[1766276528222,7.5e-07,88507.0,88506.0,0.00568]
[1766276537574,7.5e-07,88507.0,88503.0,0.03051929]
[1766276537758,7.5e-07,88507.0,88503.0,0.00523]
[1766276538164,7.5e-07,88507.0,88502.0,0.00568]
[1766276538165,0.07996075,88507.0,88502.0,0.00568]
[1766276538565,0.07996075,88507.0,88502.0,0.00224551]
[1766276539313,0.09125929,88507.0,88502.0,0.00224551]
[1766276539439,0.07996075,88507.0,88502.0,0.00224551]
[1766276539635,0.07996075,88507.0,88501.0,0.00568]
[1766276539883,0.09125929,88507.0,88501.0,0.00568]
[1766276540089,0.07996075,88507.0,88501.0,0.00568]
[1766276540288,0.09125929,88507.0,88501.0,0.00568]
[1766276540534,0.07996075,88507.0,88501.0,0.00568]
[1766276541470,0.09125929,88507.0,88501.0,0.00568]
[1766276541700,0.07996075,88507.0,88501.0,0.00568]
[1766276543140,0.07996075,88507.0,88499.0,0.0001]
[1766276543349,0.07996075,88507.0,88502.0,0.00568]
[1766276543560,7.5e-07,88507.0,88502.0,0.00568]
[1766276544758,7.5e-07,88507.0,88504.0,0.18271]
[1766276544944,7.5e-07,88507.0,88505.0,0.18271]
[1766276546172,7.5e-07,88507.0,88502.0,0.00568]
[1766276551380,7.5e-07,88507.0,88502.0,0.30865]
[1766276553611,7.5e-07,88507.0,88503.0,0.12026]
[1766276553834,7.5e-07,88507.0,88505.0,0.18271]
[1766276554289,7.5e-07,88507.0,88502.0,0.00568]
[1766276554290,7.5e-07,88507.0,88503.0,0.30297]
[1766276554410,7.5e-07,88507.0,88506.0,0.30297]
[1766276556083,7.5e-07,88507.0,88506.0,0.12026]
[1766276556495,0.63006832,88520.0,88502.0,0.01697917]
[1766276556496,0.0001,88523.0,88511.0,0.01129803]
[1766276556695,0.0001,88523.0,88500.0,0.10388594]
[1766276556696,0.01129522,88533.0,88523.0,0.000549]
[1766276556893,0.01129522,88533.0,88522.0,0.17655]
[1766276556894,0.01129522,88533.0,88522.0,0.29647]
[1766276557118,0.12948509,88534.0,88522.0,0.29647]
[1766276557321,0.01129522,88533.0,88522.0,0.29647]
[1766276557658,0.12380522,88533.0,88522.0,0.29647]
[1766276558054,0.01129547,88531.0,88522.0,0.29647]
[1766276558204,0.12380522,88533.0,88522.0,0.29647]
[1766276558205,0.01129535,88532.0,88522.0,0.29647]
[1766276558406,0.12380522,88533.0,88522.0,0.29647]
[1766276558607,0.01129547,88531.0,88522.0,0.29647]
[1766276559226,0.01129535,88532.0,88522.0,0.29647]
[1766276560464,0.01129535,88532.0,88522.0,0.17655]
[1766276560613,0.01129547,88531.0,88522.0,0.17655]
[1766276561152,0.01129535,88532.0,88522.0,0.17655]
[1766276561360,0.01129547,88531.0,88522.0,0.17655]
[1766276561806,0.12380522,88533.0,88522.0,0.17655]
[1766276561983,0.01129535,88532.0,88522.0,0.17655]
[1766276562517,0.00049203,88523.0,88522.0,0.17655]
[1766276562685,3e-08,88523.0,88522.0,0.17655]
[1766276566025,0.08482003,88523.0,88505.0,0.17655]
[1766276566238,0.000492,88522.0,88511.0,0.17655]
[1766276566416,0.000492,88522.0,88514.0,0.11992]
[1766276566610,0.000492,88522.0,88514.0,0.29647]
[1766276566611,0.01129662,88522.0,88514.0,0.29647]
[1766276567643,0.01129675,88521.0,88514.0,0.29647]
[1766276569047,0.01129688,88520.0,88514.0,0.29647]
[1766276569648,0.011297,88519.0,88514.0,0.17655]
[1766276570258,0.01129688,88520.0,88514.0,0.17655]
[1766276572488,0.01129675,88521.0,88514.0,0.17655]
[1766276572732,0.01129688,88520.0,88514.0,0.17655]
[1766276574086,0.01129675,88521.0,88514.0,0.17655]
[1766276574282,0.01129662,88522.0,88514.0,0.17655]
[1766276574536,6.49e-05,88523.0,88514.0,0.17655]
[1766276575252,0.01136139,88523.0,88514.0,0.17655]
[1766276575487,0.01129662,88522.0,88514.0,0.17655]
[1766276577227,0.01136139,88523.0,88514.0,0.17655]
[1766276577447,0.01129662,88522.0,88514.0,0.17655]
[1766276577845,0.01136139,88523.0,88514.0,0.17655]
[1766276578583,6.49e-05,88523.0,88514.0,0.17655]
[1766276580551,7.9e-06,88523.0,88517.0,0.17655]
[1766276580723,7.9e-06,88523.0,88515.0,0.01129752]
[1766276580874,7.9e-06,88523.0,88520.0,0.17655]
[1766276581491,7.9e-06,88523.0,88519.0,0.00564]
[1766276584357,0.08268,88518.0,88514.0,0.00564]
[1766276584562,0.08268,88518.0,88513.0,0.00564]
[1766276584563,0.12380739,88516.0,88513.0,0.00564]
[1766276584779,0.12380739,88516.0,88511.0,0.00568]
[1766276584946,0.11251,88516.0,88511.0,0.00568]
[1766276585186,0.09397713,88518.0,88511.0,0.00568]
[1766276585390,0.01129726,88517.0,88511.0,0.00568]
[1766276586057,0.01129739,88516.0,88511.0,0.00568]
[1766276586264,0.01129739,88516.0,88511.0,0.005131]
[1766276586938,0.01129726,88517.0,88512.0,0.30354]
[1766276588177,0.01129713,88518.0,88512.0,0.30354]
[1766276588696,0.011297,88519.0,88512.0,0.30354]
[1766276588950,0.01129726,88517.0,88512.0,0.30354]
[1766276589180,0.011297,88519.0,88512.0,0.30354]
[1766276589181,0.01129713,88518.0,88512.0,0.30354]
[1766276589700,0.011297,88519.0,88512.0,0.30354]
[1766276589906,0.01129713,88518.0,88512.0,0.30354]
[1766276590131,0.011297,88519.0,88512.0,0.30354]
[1766276591125,0.01129713,88518.0,88512.0,0.18038]
[1766276591713,0.01129726,88517.0,88512.0,0.18038]
[1766276592107,0.01129739,88516.0,88512.0,0.18038]
[1766276592531,0.01129752,88515.0,88512.0,0.18038]
[1766276592796,0.01129777,88513.0,88511.0,0.00568]
[1766276592999,0.01129764,88514.0,88511.0,0.00568]
[1766276596113,0.01129752,88515.0,88511.0,0.00568]
[1766276596694,0.01129752,88515.0,88509.0,0.00564]
[1766276598167,0.18653881,88511.0,88501.0,0.04632264]
[1766276598400,0.01129841,88508.0,88501.0,0.00574]
[1766276598597,0.75984877,88511.0,88501.0,0.00574]
[1766276598817,0.13004803,88511.0,88501.0,0.00574]
[1766276599037,0.11875,88511.0,88501.0,0.00574]
[1766276602041,0.13004803,88511.0,88501.0,0.00574]
[1766276602190,0.11875,88511.0,88501.0,0.00574]
[1766276602621,0.01129803,88511.0,88501.0,0.18612]
[1766276603276,0.07342666,88513.0,88501.0,0.18612]
[1766276603277,0.0112979,88512.0,88501.0,0.18612]
[1766276603429,0.01129803,88511.0,88501.0,0.18622]
[1766276603833,0.01129815,88510.0,88501.0,0.18622]
[1766276604080,0.01129803,88511.0,88501.0,0.18622]
[1766276604283,0.01129815,88510.0,88501.0,0.18622]
[1766276604942,0.01129803,88511.0,88501.0,0.19751815]
[1766276605352,0.01693777,88513.0,88501.0,0.19751815]
[1766276605557,0.0112979,88512.0,88501.0,0.19751815]
[1766276606329,0.01693777,88513.0,88501.0,0.32067815]
[1766276607142,0.00564,88513.0,88501.0,0.32067815]
[1766276607260,0.0112979,88512.0,88503.0,0.18038]
[1766276607470,0.01693777,88513.0,88503.0,0.30354]
[1766276608417,0.0112979,88512.0,88503.0,0.30354]
[1766276609463,0.00564,88513.0,88503.0,0.30354]
[1766276610318,0.01693777,88513.0,88503.0,0.30354]
[1766276610724,0.00564,88513.0,88503.0,0.30354]
[1766276612604,0.00564,88513.0,88502.0,0.30744]
[1766276612778,0.00564,88513.0,88501.0,0.02843745]
[1766276613138,0.00564,88513.0,88502.0,0.30744]
[1766276613553,0.00564,88513.0,88503.0,0.18416]
[1766276613912,0.00564,88513.0,88503.0,0.30744]
[1766276614103,0.00564,88513.0,88504.0,0.18416]
[1766276616639,0.00564,88513.0,88505.0,0.11524]
[1766276616785,0.01129726,88517.0,88501.0,0.02843745]
[1766276616991,0.00564,88516.0,88501.0,0.02843745]
[1766276617175,0.00564,88516.0,88502.0,0.30171]
[1766276617372,0.01129752,88515.0,88501.0,0.01713815]
[1766276617573,0.01129764,88514.0,88501.0,0.01713815]
[1766276617781,0.01693739,88516.0,88503.0,0.18647]
[1766276618754,0.00564,88516.0,88508.0,0.30171]
[1766276618966,0.00564,88516.0,88509.0,0.18647]
[1766276621603,0.00564,88516.0,88510.0,0.11524]
[1766276621806,0.00564,88516.0,88510.0,0.30171]
[1766276622158,0.00564,88516.0,88510.0,0.18647]
[1766276633164,0.00564,88516.0,88506.0,0.12088]
[1766276633775,0.00564,88516.0,88506.0,0.30735]
[1766276639869,0.01693739,88516.0,88506.0,0.30735]
[1766276640072,0.00564,88516.0,88506.0,0.30735]
[1766276641503,0.01693739,88516.0,88506.0,0.30735]
[1766276641701,0.12419,88514.0,88506.0,0.005091]
[1766276643863,0.12419,88514.0,88505.0,0.01129726]
[1766276647487,0.13779552,88514.0,88505.0,0.01129726]
[1766276647689,0.14909316,88514.0,88505.0,0.01129726]
[1766276647889,0.13779552,88514.0,88505.0,0.01129726]
[1766276649509,0.0112979,88512.0,88505.0,0.01129726]
[1766276649931,0.01129803,88511.0,88505.0,0.01129726]
[1766276650134,0.01129803,88511.0,88501.0,0.0002]
[1766276650135,0.01129854,88507.0,88501.0,0.0002]
[1766276650335,0.06778894,88510.0,88503.0,0.01129726]
[1766276650532,0.7564692,88511.0,88503.0,0.01129726]
[1766276651092,0.74517117,88511.0,88503.0,0.01129726]
[1766276652176,0.75081117,88511.0,88503.0,0.01129726]
[1766276653168,0.7621092,88511.0,88503.0,0.01129726]
[1766276653362,0.75081117,88511.0,88503.0,0.01129726]
[1766276653724,0.7621092,88511.0,88503.0,0.01129726]
[1766276653925,0.75081117,88511.0,88503.0,0.01129726]
[1766276654791,0.7621092,88511.0,88503.0,0.01129726]
[1766276655230,0.01129815,88510.0,88503.0,0.01129726]
[1766276655704,0.7621092,88511.0,88503.0,0.01129726]
[1766276655705,0.75081117,88511.0,88503.0,0.01129726]
[1766276658684,0.7621092,88511.0,88503.0,0.01129726]
[1766276658882,0.75081117,88511.0,88503.0,0.01129726]
[1766276659083,0.005091,88511.0,88503.0,0.18643726]
[1766276659287,0.005091,88511.0,88503.0,0.30493726]
[1766276659482,0.005091,88511.0,88503.0,0.29364]
[1766276659718,0.005091,88511.0,88504.0,0.03394584]
[1766276660088,0.005091,88511.0,88504.0,0.20908584]
[1766276660449,0.005091,88511.0,88504.0,0.17514]
[1766276660892,0.005091,88511.0,88505.0,0.03394584]
[1766276661090,0.00031819,88511.0,88505.0,0.03394584]
[1766276661252,0.00564,88513.0,88506.0,0.29364]
[1766276661428,0.00564,88513.0,88505.0,0.03394584]
[1766276661629,0.00564,88513.0,88507.0,0.17514]
[1766276662405,0.00564,88513.0,88508.0,0.01129739]
[1766276663737,0.00564,88513.0,88509.0,0.12449]
[1766276663944,0.00564,88513.0,88510.0,0.16319]
[1766276675869,0.00564,88513.0,88510.0,0.162641]
[1766276677056,0.00213184,88513.0,88510.0,0.162641]
[1766276677260,2.84e-06,88513.0,88510.0,0.162641]
[1766276677829,0.00564,88517.0,88510.0,0.162641]
[1766276687772,0.01693726,88517.0,88510.0,0.162641]
[1766276687921,0.01129752,88515.0,88510.0,0.162641]
[1766276688133,0.01129764,88514.0,88510.0,0.162641]
[1766276688360,0.01129777,88513.0,88510.0,0.162641]
[1766276688561,0.01129764,88514.0,88510.0,0.162641]
[1766276688913,0.01129739,88516.0,88510.0,0.162641]
[1766276689697,0.01129752,88515.0,88510.0,0.162641]
[1766276690116,0.01129739,88516.0,88510.0,0.162641]
[1766276690489,0.01129752,88515.0,88510.0,0.162641]
[1766276690665,0.01129764,88514.0,88510.0,0.162641]
[1766276691156,0.0112979,88512.0,88505.0,0.00559553]
[1766276691365,0.0112979,88512.0,88507.0,0.01129764]
[1766276691585,0.01129777,88513.0,88507.0,0.01129764]
[1766276691991,0.01129764,88514.0,88507.0,0.01129764]
[1766276692610,0.01129752,88515.0,88507.0,0.01129764]
[1766276695521,0.03619739,88516.0,88507.0,0.01129764]
[1766276695757,0.01129764,88514.0,88507.0,0.01129764]
[1766276695981,0.01129752,88515.0,88507.0,0.01129764]
[1766276696402,0.01129764,88514.0,88507.0,0.01129764]
[1766276696824,0.01129752,88515.0,88507.0,0.01129764]
[1766276698295,0.01129764,88514.0,88507.0,0.01129764]
[1766276698506,0.01129777,88513.0,88507.0,0.01129764]
[1766276698771,0.13049739,88516.0,88507.0,0.01129764]
[1766276699156,0.1192,88516.0,88507.0,0.01129764]
[1766276699916,0.011297,88519.0,88507.0,0.01129764]
[1766276700113,0.00564,88517.0,88510.0,0.16053]
[1766276708467,0.01129739,88516.0,88510.0,0.16053]
[1766276708895,0.00564,88517.0,88510.0,0.16053]
[1766276709097,0.01129739,88516.0,88510.0,0.16053]
[1766276709494,0.01693726,88517.0,88510.0,0.16053]
[1766276713281,0.01129739,88516.0,88510.0,0.16053]
[1766276713690,0.01129752,88515.0,88510.0,0.16053]
[1766276714959,0.00564,88517.0,88510.0,0.16053]
[1766276715166,0.00564,88517.0,88511.0,0.2848]
[1766276715416,0.01129739,88516.0,88511.0,0.2848]
[1766276716030,0.00564,88517.0,88511.0,0.2848]
[1766276719342,0.01693726,88517.0,88511.0,0.2848]
[1766276721225,0.00564,88517.0,88511.0,0.2848]
[1766276721795,0.01693726,88517.0,88511.0,0.2848]
[1766276723571,0.00564,88517.0,88511.0,0.2848]
[1766276723894,0.01693726,88517.0,88511.0,0.2848]
[1766276724095,0.00564,88517.0,88511.0,0.2848]
[1766276726205,0.01693726,88517.0,88512.0,0.15935]
[1766276728403,0.00564,88517.0,88512.0,0.15935]
[1766276728597,0.01693726,88517.0,88512.0,0.15935]
[1766276732456,0.01129752,88515.0,88512.0,0.15935]
[1766276732889,0.01129739,88516.0,88512.0,0.15935]
[1766276734638,0.01129752,88515.0,88512.0,0.15935]
[1766276734844,0.01129739,88516.0,88512.0,0.15935]
[1766276735205,0.01129752,88515.0,88512.0,0.15935]
[1766276735913,0.01129739,88516.0,88512.0,0.15935]
[1766276736317,0.01129752,88515.0,88512.0,0.15935]
[1766276736949,0.01129739,88516.0,88512.0,0.15935]
[1766276737157,0.00564,88517.0,88512.0,0.15935]
[1766276737533,0.01693726,88517.0,88512.0,0.15935]
[1766276738461,0.01129739,88516.0,88512.0,0.15935]
[1766276740177,0.01693726,88517.0,88512.0,0.15935]
[1766276740478,0.01129739,88516.0,88512.0,0.15935]
[1766276740640,0.00564,88517.0,88512.0,0.15935]
[1766276741024,0.01693726,88517.0,88512.0,0.15935]
[1766276741337,0.01129739,88516.0,88512.0,0.15935]
[1766276745198,0.01693726,88517.0,88512.0,0.15935]
[1766276745599,0.00564,88517.0,88512.0,0.15935]
[1766276747897,0.6300562,88522.0,88517.0,0.11531]
[1766276748103,0.11301727,88526.0,88517.0,0.11531]
[1766276748104,0.00564,88521.0,88517.0,0.11531]
[1766276748303,0.00564,88520.0,88517.0,0.11531]
[1766276750116,0.00564,88520.0,88517.0,0.114761]
[1766276753794,0.01693688,88520.0,88517.0,0.114761]
[1766276754025,0.011297,88519.0,88516.0,0.15472]
[1766276754259,0.01693688,88520.0,88516.0,0.15472]
[1766276754474,0.00564,88520.0,88516.0,0.15472]
[1766276755077,0.01693688,88520.0,88516.0,0.15472]
[1766276755952,0.00564,88520.0,88516.0,0.15472]
[1766276757473,0.01129739,88516.0,88513.0,0.11531]
[1766276758478,0.01129764,88514.0,88509.0,0.01129649]
[1766276758717,0.01129739,88516.0,88509.0,0.12660649]
[1766276759189,0.01129752,88515.0,88509.0,0.12660649]
[1766276759391,0.01129752,88515.0,88510.0,0.15472]
[1766276760250,0.01129739,88516.0,88510.0,0.15472]
[1766276760610,0.01129752,88515.0,88510.0,0.15472]
[1766276760814,0.01129739,88516.0,88510.0,0.15472]
[1766276761197,0.01129764,88514.0,88510.0,0.15472]
[1766276761396,0.01129726,88517.0,88510.0,0.15472]
[1766276761602,0.01129764,88514.0,88510.0,0.15472]
[1766276762503,0.01129752,88515.0,88510.0,0.15472]
[1766276762653,0.0112979,88512.0,88509.0,0.01129649]
[1766276762856,0.0112979,88512.0,88509.0,0.00209998]
[1766276763440,0.01129764,88514.0,88509.0,0.00209998]
[1766276764901,0.01129777,88513.0,88509.0,0.00209998]
[1766276765657,0.0112979,88512.0,88507.0,0.0001]
[1766276765866,0.0112979,88512.0,88507.0,0.01139777]
[1766276766061,0.01129752,88515.0,88507.0,0.01139777]
[1766276766262,0.01129752,88515.0,88507.0,0.16531777]
[1766276766701,0.01129777,88513.0,88507.0,0.16531777]
[1766276766884,0.01129764,88514.0,88507.0,0.27915777]
[1766276767502,0.01129777,88513.0,88507.0,0.27915777]
[1766276768101,0.0112979,88512.0,88507.0,0.27915777]
[1766276768660,0.01129803,88511.0,88507.0,0.27915777]
[1766276768861,0.0112979,88512.0,88507.0,0.27915777]
[1766276770093,0.0112979,88512.0,88508.0,0.15392]
[1766276770298,0.06778603,88514.0,88508.0,0.26776]
[1766276770502,0.0112979,88512.0,88508.0,0.26776]
[1766276770712,0.01129777,88513.0,88508.0,0.26776]
[1766276771125,0.01129764,88514.0,88508.0,0.26776]
[1766276772424,0.01129777,88513.0,88508.0,0.26776]
[1766276773537,0.0112979,88512.0,88508.0,0.26776]
[1766276773714,0.01129803,88511.0,88508.0,0.26776]
[1766276773920,0.01129764,88514.0,88512.0,0.15392]